bitfinex-derivatives/quotes_SOLF0:USTF0_20250127
["timestamp","ask_amount","ask_price","bid_price","bid_amount"]
[1737974532106,2.9261,222.61,222.44,23.63042058]
[1737974532305,0.03022071,222.53,222.49,4.4964]
[1737974532602,0.03022071,222.53,222.44,23.63042058]
[1737974532806,0.03022071,222.53,222.49,0.03220399]
[1737974534204,24.04025138,222.63,222.49,0.03220399]
[1737974534409,1.4513,222.68,222.48,23.63042058]
[1737974534616,1.4513,222.68,222.49,2.8075]
[1737974534808,2.8576,222.68,222.49,2.8075]
[1737974535011,4.4936,222.64,222.55,4.4951]
[1737974535211,23.63042058,222.63,222.49,2.8075]
[1737974535510,4.4947,222.58,222.57,3.65e-05]
[1737974535708,23.63042058,222.59,222.43,4.4976]
[1737974535906,2.8051,222.58,222.39,1.3634]
[1737974536114,23.63042058,222.55,222.42,4.4979]
[1737974536414,23.63042058,222.55,222.39,1.3634]
[1737974536809,0.02892855,222.49,222.45,0.03403934]
[1737974537712,1.4099,222.58,222.45,0.03403934]
[1737974537915,4.4946,222.59,222.49,4.4965]
[1737974538514,4.4943,222.6,222.5,4.4962]
[1737974538817,0.03057773,222.51,222.5,4.4962]
[1737974539021,4.4943,222.6,222.5,4.4962]
[1737974539221,0.0295472,222.53,222.48,0.03078454]
[1737974539413,0.0295472,222.53,222.47,4.4969]
[1737974539617,23.63042058,222.63,222.48,0.03148573]
[1737974539813,0.03421113,222.52,222.48,0.03148573]
[1737974540014,4.4951,222.56,222.47,4.4969]
[1737974540220,23.63042058,222.63,222.53,0.02980371]
[1737974540419,0.02989325,222.54,222.39,24.99382058]
[1737974540613,23.63042058,222.63,222.39,24.99382058]
[1737974540818,0.02994238,222.49,222.46,4.497]
[1737974541019,4.4952,222.56,222.44,0.02942732]
[1737974541223,23.63042058,222.63,222.51,4.4961]
[1737974541517,0.03452541,222.52,222.51,4.4961]
[1737974541720,23.63042058,222.63,222.51,4.4961]
[1737974541916,0.02896643,222.54,222.51,4.4961]
[1737974542113,4.4944,222.6,222.51,4.4961]
[1737974542319,0.03086866,222.55,222.51,4.4961]
[1737974542520,0.03086866,222.55,222.5,0.03228083]
[1737974544320,4.4931,222.67,222.51,23.63042058]
[1737974544628,1.3344,222.69,222.52,1.3359]
[1737974544826,23.63042058,222.75,222.62,4.4939]
[1737974545127,24.96482058,222.75,222.55,23.63042058]
[1737974545530,1.3344,222.75,222.63,0.03251535]
[1737974545724,0.03188047,222.67,222.63,0.03251535]
[1737974546530,0.03188047,222.67,222.65,4.4931]
[1737974546730,1.3991,222.76,222.63,0.03251535]
[1737974547328,1.4224,222.81,222.63,0.03251535]
[1737974547726,1.4224,222.81,222.6,1.3984]
[1737974547930,0.03203468,222.74,222.7,8.333e-05]
[1737974548227,23.63042058,222.71,222.53,1.3984]
[1737974548427,4.4944,222.6,222.53,1.3984]
[1737974548633,23.63042058,222.66,222.53,1.3984]
[1737974548934,4.4946,222.59,222.47,4.4968]
[1737974549227,0.03248112,222.55,222.51,0.0340538]
[1737974550432,0.03248112,222.55,222.52,4.4958]
[1737974550933,0.03248112,222.55,222.51,0.0340538]
[1737974551935,4.52788112,222.55,222.51,0.0340538]
[1737974552135,0.03248112,222.55,222.51,0.0340538]
[1737974553338,0.03248112,222.55,222.53,4.4956]
[1737974553636,2.7624,222.7,222.51,0.0340538]
[1737974553835,2.7624,222.7,222.52,23.63042058]
[1737974554144,2.7624,222.7,222.53,2.7682]
[1737974554339,4.4934,222.65,222.56,4.495]
[1737974554539,2.7624,222.7,222.53,2.7682]
[1737974554938,4.4938,222.63,222.59,0.02910166]
[1737974555438,0.03118884,222.64,222.59,0.02910166]
[1737974557142,4.4942,222.61,222.59,0.02910166]
[1737974557642,4.4943,222.6,222.59,0.02910166]
[1737974557939,0.03118884,222.64,222.59,0.02910166]
[1737974558141,23.63042058,222.63,222.4,23.63042058]
[1737974558338,4.496,222.52,222.42,4.498]
[1737974558638,23.63042058,222.59,222.38,1.4035]
[1737974558842,4.495,222.57,222.45,4.4973]
[1737974559039,4.495,222.57,222.4,23.63042058]
[1737974559337,7.3396,222.58,222.46,0.02927663]
[1737974559547,0.03378979,222.51,222.46,0.02927663]
[1737974560440,0.03378979,222.51,222.47,4.4969]
[1737974560843,0.03378979,222.51,222.46,0.02927663]
[1737974561033,0.03378979,222.51,222.49,4.4964]
[1737974561442,0.03378979,222.51,222.47,1.3716]
[1737974561743,4.4949,222.57,222.47,1.3716]
[1737974562442,1.3693,222.66,222.47,1.3716]
[1737974562645,23.63042058,222.63,222.47,1.3716]
[1737974562942,0.03327841,222.59,222.54,0.0283822]
[1737974564138,4.495,222.57,222.54,0.0283822]
[1737974564340,0.03327841,222.59,222.54,0.0283822]
[1737974565238,0.03327841,222.59,222.47,1.3716]
[1737974565745,4.52777841,222.59,222.5,4.4962]
[1737974566043,4.52777841,222.59,222.47,1.3716]
[1737974566243,4.52777841,222.59,222.51,0.03218701]
[1737974566643,4.52777841,222.59,222.51,4.52808701]
[1737974566843,4.52777841,222.59,222.51,0.03218701]
[1737974567239,0.03327841,222.59,222.51,4.52828701]
[1737974567444,0.03327841,222.59,222.51,0.03218701]
[1737974567746,0.03327841,222.59,222.51,4.52828701]
[1737974568141,4.52777841,222.59,222.51,4.52828701]
[1737974569842,0.03327841,222.59,222.54,4.4955]
[1737974570245,0.03327841,222.59,222.51,0.03218701]
[1737974572644,4.4952,222.56,222.51,0.03218701]
[1737974572844,0.03327841,222.59,222.51,0.03218701]
[1737974573145,4.4952,222.56,222.51,0.03218701]
[1737974573345,0.03327841,222.59,222.51,0.03218701]
[1737974573545,0.03327841,222.59,222.4,23.63042058]
[1737974573740,4.4955,222.55,222.46,4.4971]
[1737974574040,23.63042058,222.63,222.4,23.63042058]
[1737974574244,4.4955,222.54,222.46,4.497]
[1737974574446,23.63042058,222.63,222.41,2.7938]
[1737974574744,0.03269484,222.54,222.5,0.03055674]
[1737974574937,23.63042058,222.59,222.5,0.03055674]
[1737974575140,0.0322755,222.54,222.38,2.7938]
[1737974575339,4.4957,222.53,222.52,0.0295472]
[1737974575546,0.03245772,222.48,222.38,2.7938]
[1737974576340,0.03245772,222.48,222.24,23.63042058]
[1737974576341,0.03245772,222.48,222.4,23.63042058]
[1737974576539,1.4317,222.58,222.24,23.63042058]
[1737974576540,4.4972,222.46,222.37,4.499]
[1737974576739,0.03107442,222.46,222.42,0.0284178]
[1737974576941,1.3738,222.53,222.31,26.48352058]
[1737974577143,0.03257778,222.46,222.42,0.02941714]
[1737974577346,4.4976,222.44,222.42,0.02941714]
[1737974577848,0.03257778,222.46,222.27,23.63042058]
[1737974578150,1.3738,222.43,222.25,1.3558]
[1737974578942,1.3738,222.43,222.32,0.03156353]
[1737974579144,0.03450873,222.36,222.32,0.03156353]
[1737974580045,4.53370873,222.36,222.32,0.03156353]
[1737974580249,0.03450873,222.36,222.32,0.03156353]
[1737974580449,0.03450873,222.36,222.19,23.63042058]
[1737974580653,23.63042058,222.38,222.19,23.63042058]
[1737974581552,23.63042058,222.38,222.21,4.5021]
[1737974581753,0.03069631,222.31,222.26,0.03173]
[1737974582151,0.03069631,222.31,222.04,27.77389002]
[1737974582347,23.63042058,222.33,222.04,14.57747184]
[1737974582659,4.5014,222.25,222.12,4.504]
[1737974582956,1.3877,222.32,222.08,23.63042058]
[1737974583156,4.5019,222.23,222.12,4.504]
[1737974583452,0.03286933,222.22,222.18,0.03238333]
[1737974583760,4.5029,222.18,222.08,23.63042058]
[1737974584349,4.5025,222.2,222.09,4.5046]
[1737974585052,0.0309324,222.17,222.12,0.02834232]
[1737974585252,23.63042058,222.29,222.08,23.63042058]
[1737974585448,23.63042058,222.29,222.12,0.03371588]
[1737974585449,0.03012354,222.17,222.12,0.03371588]
[1737974585653,0.03012354,222.17,222.08,23.63042058]
[1737974585849,0.03317106,222.15,222.12,0.03450928]
[1737974588158,4.53677106,222.15,222.12,0.03450928]
[1737974588457,0.03317106,222.15,222.12,0.03450928]
[1737974588659,0.03317106,222.15,222.04,4.3186]
[1737974589554,4.5038,222.13,222.04,4.3186]
[1737974590056,0.03317106,222.15,222.06,0.03033242]
[1737974590558,4.53657106,222.15,222.06,0.03033242]
[1737974591055,0.03317106,222.15,222.06,0.03033242]
[1737974591754,0.03317106,222.15,222.12,4.504]
[1737974591949,0.03317106,222.15,222.06,0.03033242]
[1737974592154,0.03317106,222.15,222.04,27.94902058]
[1737974592354,0.03317106,222.15,222.12,4.5039]
[1737974593059,0.03317106,222.15,222.09,4.5046]
[1737974593256,0.03317106,222.15,222.08,0.03106619]
[1737974594357,0.03317106,222.15,222.1,4.5044]
[1737974594552,0.03317106,222.15,222.08,0.03106619]
[1737974596063,0.03317106,222.15,222.09,4.5045]
[1737974597061,0.03317106,222.15,222.08,0.03106619]
[1737974597258,0.03317106,222.15,222.1,4.5044]
[1737974597865,0.03317106,222.15,222.08,0.03106619]
[1737974598962,4.5043,222.11,222.08,0.03106619]
[1737974599265,0.03317106,222.15,222.08,0.03106619]
[1737974599458,4.5046,222.09,222.08,0.03106619]
[1737974599863,1.4445,222.14,222.08,0.03106619]
[1737974600265,4.5044,222.1,222.08,0.03106619]
[1737974600464,1.4445,222.14,222.08,0.03106619]
[1737974600660,4.504,222.13,222.08,0.03106619]
[1737974600865,1.4445,222.14,222.08,0.03106619]
[1737974601358,4.5046,222.09,222.08,0.03106619]
[1737974601768,23.63042058,222.09,222.03,0.17201]
[1737974601958,25.10052058,222.13,222.03,0.17201]
[1737974602164,1.4701,222.13,222.03,0.17201]
[1737974602464,1.4445,222.14,222.03,0.17201]
[1737974602970,0.03090631,222.11,222.06,0.02986927]
[1737974604571,4.53520631,222.11,222.06,0.02986927]
[1737974604868,0.03090631,222.11,222.06,0.02986927]
[1737974605363,4.53520631,222.11,222.06,0.02986927]
[1737974606263,4.5046,222.1,222.06,0.02986927]
[1737974606464,0.03090631,222.11,222.06,0.02986927]
[1737974607067,4.5047,222.09,222.06,0.02986927]
[1737974607366,0.03090631,222.11,222.06,0.02986927]
[1737974607567,4.53530631,222.11,222.06,0.02986927]
[1737974609668,0.03090631,222.11,222.06,0.02986927]
[1737974610663,14.87406738,222.1,222.06,0.02986927]
[1737974610861,4.505,222.07,222.06,0.02986927]
[1737974611059,0.03090631,222.11,222.06,0.02986927]
[1737974612470,14.90497369,222.11,221.95,14.87406738]
[1737974612671,14.87406738,222.11,221.95,14.87406738]
[1737974613171,4.5056,222.05,221.97,4.5071]
[1737974613365,14.87406738,222.14,221.98,14.87406738]
[1737974613562,0.02925327,222.03,221.99,0.02969641]
[1737974613872,14.87406738,222.14,221.98,14.87406738]
[1737974614169,4.505,222.08,221.99,4.5066]
[1737974614361,0.03406734,222.08,222.04,0.02889768]
[1737974614870,4.5052,222.07,222.04,0.02889768]
[1737974615068,0.03406734,222.08,222.04,0.02889768]
[1737974615966,4.5051,222.07,222.04,0.02889768]
[1737974616165,0.03406734,222.08,222.04,0.02889768]
[1737974616570,4.53906734,222.08,222.04,0.02889768]
[1737974617171,0.03406734,222.08,222.04,0.02889768]
[1737974618667,4.5054,222.05,222.04,0.02889768]
[1737974619972,4.5053,222.06,222.04,0.02889768]
[1737974620169,0.03406734,222.08,222.04,0.02889768]
[1737974620472,4.5054,222.05,222.04,0.02889768]
[1737974621371,14.90813472,222.08,222.04,0.02889768]
[1737974622167,4.5054,222.05,222.04,0.02889768]
[1737974623569,4.5051,222.07,222.04,0.02889768]
[1737974623772,14.90813472,222.08,222.04,0.02889768]
[1737974624170,4.5054,222.06,222.04,0.02889768]
[1737974624773,4.505,222.07,222.04,0.02889768]
[1737974625072,0.03406734,222.08,222.04,0.02889768]
[1737974626476,14.90813472,222.08,222.04,0.02889768]
[1737974626976,4.5054,222.05,222.04,0.02889768]
[1737974628077,4.5069,221.98,221.92,4.2777]
[1737974628273,14.87406738,221.96,221.83,48.82396758]
[1737974628476,14.87406738,221.91,221.83,48.82396758]
[1737974628673,4.5096,221.85,221.83,48.82396758]
[1737974629173,4.5105,221.81,221.69,4.5127]
[1737974629379,14.87406738,221.79,221.66,10.27897099]
[1737974629681,0.0310374,221.77,221.73,0.03355198]
[1737974629880,14.87406738,221.83,221.73,0.03355198]
[1737974630280,0.02948616,221.77,221.73,0.03355198]
[1737974636288,0.02948616,221.77,221.6,23.85377189]
[1737974636585,26.70657189,221.86,221.6,23.85377189]
[1737974636781,4.5096,221.85,221.69,4.5126]
[1737974636987,4.5096,221.85,221.6,23.85377189]
[1737974637481,0.0294237,221.75,221.6,23.85377189]
[1737974637683,4.5097,221.84,221.6,23.85377189]
[1737974637882,0.03340846,221.7,221.6,23.85377189]
[1737974638085,4.51,221.83,221.69,4.5127]
[1737974638386,26.70657189,221.86,221.6,23.85377189]
[1737974638684,4.5097,221.85,221.6,23.85377189]
[1737974638884,26.70657189,221.86,221.64,23.85377189]
[1737974639384,0.02848118,221.77,221.73,0.03097262]
[1737974639585,26.70657189,221.86,221.73,0.03097262]
[1737974639879,4.51,221.83,221.73,0.03097262]
[1737974640088,0.03148403,221.82,221.73,0.03097262]
[1737974641486,0.03148403,221.82,221.74,4.5117]
[1737974641686,0.03148403,221.82,221.73,0.03097262]
[1737974643380,46.74730089,221.87,221.73,0.03097262]
[1737974643586,46.74730089,221.87,221.73,23.85377189]
[1737974643788,23.85377189,221.94,221.73,23.85377189]
[1737974643987,23.85377189,221.98,221.77,23.85377189]
[1737974644190,4.5073,221.96,221.83,4.5099]
[1737974644496,23.85377189,221.98,221.77,23.85377189]
[1737974644688,23.85377189,221.98,221.71,2.7469]
[1737974644689,0.03001328,221.92,221.87,0.03091226]
[1737974644988,47.31070194,222.05,221.85,23.85377189]
[1737974645389,47.31070194,222.05,221.91,4.5083]
[1737974645589,47.31070194,222.05,221.85,23.85377189]
[1737974646187,0.03104626,221.97,221.93,0.03116996]
[1737974646492,47.31070194,222.05,221.93,0.03116996]
[1737974647294,1.394,222.17,221.93,0.03116996]
[1737974647597,0.03009427,222.01,221.89,23.85377189]
[1737974647894,0.03009427,222.01,222.0,0.03049802]
[1737974648094,4.5046,222.1,221.95,4.5074]
[1737974648294,4.5046,222.1,221.96,1.365]
[1737974648596,28.35787189,222.12,221.96,1.365]
[1737974648793,23.85377189,222.16,221.97,1.4209]
[1737974649296,23.85377189,222.16,221.97,25.27467189]
[1737974649499,0.02880697,222.09,222.04,0.03028519]
[1737974649694,23.85377189,222.16,222.04,0.03028519]
[1737974649894,23.85377189,222.16,221.97,25.27467189]
[1737974650295,4.5027,222.19,221.97,25.27467189]
[1737974650891,23.85377189,222.16,221.97,1.4209]
[1737974651097,0.03336316,222.1,222.06,0.03127499]
[1737974651603,0.0301719,222.1,222.06,0.03453278]
[1737974653399,23.85377189,222.08,221.96,1.365]
[1737974653996,28.35867189,222.08,221.96,1.365]
[1737974654196,23.85377189,222.08,221.96,1.365]
[1737974654606,2.7835,222.1,221.96,1.365]
[1737974654806,0.03051722,222.04,222.0,0.0297699]
[1737974656103,4.506,222.03,222.0,0.0297699]
[1737974656406,0.03051722,222.04,222.0,0.0297699]
[1737974656702,4.5061,222.02,222.0,0.0297699]
[1737974656897,0.03051722,222.04,221.85,26.64537189]
[1737974657298,23.85377189,222.05,221.85,26.64537189]
[1737974657504,23.85377189,222.09,221.85,26.64537189]
[1737974657706,23.85377189,222.09,221.89,23.85377189]
[1737974658208,0.0332908,222.01,221.97,0.03198633]
[1737974659501,4.5395908,222.01,221.97,0.03198633]
[1737974659908,0.0332908,222.01,221.97,0.03198633]
[1737974661609,23.85377189,222.17,221.97,23.88575822]
[1737974661806,23.85377189,222.17,221.98,1.362]
[1737974662209,23.85377189,222.17,221.98,2.8354]
[1737974662405,4.5046,222.1,222.02,4.506]
[1737974662808,0.03419531,222.08,222.04,0.03051558]
[1737974663005,2.8478,222.19,221.98,2.8354]
[1737974663409,23.85377189,222.17,221.98,2.8354]
[1737974664010,2.8478,222.19,222.01,23.85377189]
[1737974664212,0.03052183,222.1,222.05,0.02912614]
[1737974664412,47.27859345,222.21,222.05,0.02912614]
[1737974664713,47.27859345,222.21,222.05,23.85377189]
[1737974665011,4.5024,222.2,222.05,23.85377189]
[1737974665311,1.4564,222.24,222.05,23.85377189]
[1737974665510,4.5021,222.22,222.15,4.5034]
[1737974665710,0.0307488,222.17,222.15,4.5034]
[1737974666012,0.0307488,222.17,222.14,4.53274374]
[1737974666212,1.4564,222.24,222.14,0.02914374]
[1737974666412,4.5015,222.25,222.15,4.5033]
[1737974666712,23.85377189,222.29,222.11,2.9239]
[1737974667214,4.5011,222.27,222.11,2.9239]
[1737974667512,0.02880557,222.22,222.18,0.03206015]
[1737974667713,0.02880557,222.22,222.2,4.5024]
[1737974668210,0.02880557,222.22,222.18,0.03206015]
[1737974668806,4.53090557,222.22,222.18,0.03206015]
[1737974669012,0.02880557,222.22,222.18,0.03206015]
[1737974670008,4.5008,222.28,222.2,4.5024]
[1737974670311,6.29076284,222.35,222.17,23.85377189]
[1737974670312,6.01006284,222.35,222.17,23.85377189]
[1737974670509,6.01006284,222.35,222.25,23.85377189]
[1737974670708,6.01006284,222.35,222.21,23.85377189]
[1737974671011,6.01006284,222.35,222.3,23.85377189]
[1737974671214,18.03018854,222.36,222.3,23.85377189]
[1737974671509,0.03344591,222.35,222.34,4.4996]
[1737974671710,18.03018854,222.36,222.34,4.4996]
[1737974671917,10.39378854,222.36,222.34,4.4996]
[1737974672112,291.18495585,222.38,222.37,4.499]
[1737974672313,126.21790522,222.38,222.37,4.499]
[1737974672509,111.95740522,222.38,222.37,4.499]
[1737974672714,50.06082662,222.38,222.37,4.499]
[1737974673012,19.37342662,222.38,222.37,4.499]
[1737974673216,11.79622662,222.38,222.37,4.499]
[1737974673914,101.18221591,222.43,222.36,23.85377189]
[1737974674317,101.18221591,222.43,222.36,28.35277189]
[1737974674513,101.18221591,222.43,222.36,23.85377189]
[1737974674720,101.18221591,222.43,222.36,28.35287189]
[1737974675223,0.02992095,222.42,222.37,0.03423552]
[1737974677423,0.02992095,222.42,222.39,4.4985]
[1737974677820,0.02992095,222.42,222.36,13.30335312]
[1737974678620,0.02992095,222.42,222.4,28.35207189]
[1737974679516,186.4810398,222.59,222.42,4.4979]
[1737974679822,4.1527,222.59,222.4,23.85377189]
[1737974680017,4.4959,222.53,222.44,4.4975]
[1737974680224,4.4959,222.53,222.44,28.35127189]
[1737974680620,4.4954,222.55,222.44,23.85377189]
[1737974680923,0.0340687,222.51,222.46,0.03325556]
[1737974681426,0.0340687,222.51,222.49,4.4964]
[1737974681918,4.4941,222.61,222.48,23.85377189]
[1737974682218,2.8676,222.65,222.48,23.85377189]
[1737974682621,4.4943,222.6,222.51,4.496]
[1737974682817,2.8676,222.65,222.48,23.85377189]
[1737974683225,0.03267594,222.59,222.54,0.03114205]
[1737974683915,0.03267594,222.59,222.55,4.4953]
[1737974684115,0.03267594,222.59,222.54,0.03114205]
[1737974684515,4.495,222.57,222.54,0.03114205]
[1737974684719,0.03267594,222.59,222.54,0.03114205]
[1737974685121,4.4952,222.56,222.54,0.03114205]
[1737974686221,4.4953,222.55,222.54,0.03114205]
[1737974687226,23.85377189,222.56,222.36,23.85377189]
[1737974687427,1.3478,222.55,222.32,23.85377189]
[1737974687630,4.4969,222.48,222.36,4.499]
[1737974687825,23.85377189,222.52,222.32,27.09377189]
[1737974688026,23.85377189,222.52,222.33,3.24]
[1737974688228,4.4984,222.4,222.32,23.85377189]
[1737974688428,0.02913535,222.45,222.4,0.03131491]
[1737974688726,4.52653535,222.45,222.4,0.03131491]
[1737974689032,23.85377189,222.52,222.32,27.09377189]
[1737974689331,0.03077888,222.45,222.4,0.03358493]
[1737974690930,0.03077888,222.45,222.28,23.85377189]
[1737974691323,23.85377189,222.48,222.28,23.85377189]
[1737974692125,4.4987,222.39,222.36,0.02846221]
[1737974692326,0.02886114,222.4,222.36,0.02846221]
[1737974692527,1.35,222.38,222.24,3.22]
[1737974692825,4.4994,222.35,222.29,4.5006]
[1737974693031,4.4994,222.35,222.23,27.07377189]
[1737974693329,4.4991,222.37,222.23,27.07377189]
[1737974693524,1.35,222.38,222.23,27.07377189]
[1737974693724,1.35,222.38,222.27,4.5009]
[1737974693922,0.03323275,222.32,222.28,0.02876061]
[1737974694122,23.85377189,222.53,222.31,23.85377189]
[1737974694321,5.9373,222.51,222.36,23.85377189]
[1737974694825,1.441,222.51,222.36,23.85377189]
[1737974695432,0.03156727,222.46,222.45,4.4972]
[1737974696725,71.75693755,222.46,222.39,36.04702113]
[1737974697431,71.75693755,222.46,222.35,41.72300708]
[1737974697923,4.4976,222.44,222.39,4.4985]
[1737974698526,4.52790316,222.44,222.39,4.4985]
[1737974698934,47.9110563,222.41,222.4,4.4984]
[1737974699733,47.9110563,222.41,222.32,3.22]
[1737974700134,47.9110563,222.41,222.27,38.50300708]
[1737974700633,47.9110563,222.41,222.27,41.72300708]
[1737974700825,0.03428674,222.36,222.32,0.03029868]
[1737974701731,8.674e-05,222.36,222.35,4.4994]
[1737974702531,8.674e-05,222.36,222.32,0.03029868]
[1737974703838,2.74588674,222.36,222.25,4.5012]
[1737974704032,2.74588674,222.36,222.19,38.50300708]
[1737974704537,18.05353959,222.34,222.19,38.50300708]
[1737974705237,0.03253169,222.29,222.24,0.03152325]
[1737974705433,4.5011,222.27,222.24,0.03152325]
[1737974705737,0.03253169,222.29,222.24,0.03152325]
[1737974705932,4.5013,222.26,222.24,0.03152325]
[1737974706136,0.03253169,222.29,222.11,38.50300708]
[1737974706338,38.50300708,222.28,222.07,38.50300708]
[1737974706540,1.3334,222.27,222.07,38.50300708]
[1737974706739,4.5029,222.18,222.11,4.5041]
[1737974707037,38.50300708,222.24,222.03,38.50300708]
[1737974707234,1.46500393,222.17,222.12,4.988e-05]
[1737974707538,1.3644,222.16,221.99,38.50300708]
[1737974708037,1.3644,222.16,222.04,38.50300708]
[1737974708334,1.3644,222.16,222.01,4.5061]
[1737974708541,0.03400243,222.12,222.08,0.03354676]
[1737974708837,0.03400243,222.12,221.96,38.50300708]
[1737974709238,4.5045,222.1,222.01,4.5062]
[1737974709740,4.5044,222.11,222.0,4.5064]
[1737974709938,0.03400243,222.12,222.04,0.02880747]
[1737974710730,0.03400243,222.12,221.92,38.50300708]
[1737974710731,38.53700951,222.12,221.92,38.50300708]
[1737974710936,38.50300708,222.03,221.89,10.23361846]
[1737974711135,38.50300708,221.99,221.89,8.00961846]
[1737974711337,38.50300708,221.99,221.89,1.33731846]
[1737974711537,38.50300708,221.95,221.81,185.51259491]
[1737974711838,4.51,221.83,221.81,148.37909491]
[1737974712038,38.50300708,221.87,221.86,7.058e-05]
[1737974712239,38.50300708,221.91,221.81,148.37909491]
[1737974712542,38.50300708,221.95,221.81,148.37909491]
[1737974712937,38.50300708,221.99,221.81,186.88210199]
[1737974713134,38.50300708,222.03,221.81,186.88210199]
[1737974713341,38.50300708,222.03,221.88,4.5088]
[1737974713342,0.02852659,221.9,221.88,4.5088]
[1737974713533,18.01715918,222.02,221.86,0.0328601]
[1737974713841,18.01715918,222.02,221.85,38.50300708]
[1737974714443,4.5066,222.0,221.87,4.509]
[1737974714738,0.03326839,221.96,221.91,0.03038133]
[1737974715940,0.03326839,221.96,221.92,4.508]
[1737974716544,0.03326839,221.96,221.91,0.03038133]
[1737974716745,38.50300708,221.95,221.77,1.4239]
[1737974717141,4.5084,221.91,221.8,4.5105]
[1737974717540,4.5084,221.91,221.81,4.5102]
[1737974717736,4.5082,221.92,221.77,1.4239]
[1737974718040,0.03142463,221.88,221.84,0.03318821]
[1737974719644,4.54042463,221.88,221.84,0.03318821]
[1737974719846,0.03142463,221.88,221.84,0.03318821]
[1737974721541,0.03142463,221.88,221.87,4.5091]
[1737974722046,0.03142463,221.88,221.84,0.03318821]
[1737974722850,0.03142463,221.88,221.86,4.5093]
[1737974723143,0.03142463,221.88,221.84,0.03318821]
[1737974723446,0.03142463,221.88,221.84,4.54288821]
[1737974723846,0.03142463,221.88,221.84,0.03318821]
[1737974724047,38.50300708,222.03,221.84,0.03318821]
[1737974724247,38.50300708,222.07,221.84,0.03318821]
[1737974724450,38.50300708,222.07,221.86,38.50300708]
[1737974724954,41.74300708,222.12,221.87,1.4471]
[1737974725452,0.03027727,222.02,221.97,0.02899429]
[1737974725651,4.5071,221.97,221.9,4.5084]
[1737974725852,0.03310632,222.02,221.97,0.03239406]
[1737974726151,38.50300708,222.0,221.77,39.92690708]
[1737974726350,4.5084,221.91,221.78,1.388]
[1737974726547,38.50300708,222.03,221.78,1.388]
[1737974726751,4.5064,222.01,221.93,4.5077]
[1737974726951,38.50300708,222.07,221.83,38.50300708]
[1737974727246,0.03069203,221.97,221.93,0.03033274]
[1737974727446,38.50300708,222.07,221.9,4.5085]
[1737974727654,0.03362102,221.97,221.93,0.03404071]
[1737974727951,38.50300708,222.07,221.83,38.50300708]
[1737974728252,0.0345834,221.97,221.93,0.03028716]
[1737974728454,38.50300708,222.07,221.83,38.50300708]
[1737974728655,0.03438685,221.97,221.93,0.03459953]
[1737974728848,38.50300708,222.07,221.83,38.50300708]
[1737974729054,0.03228474,221.97,221.93,0.02935805]
[1737974729246,4.507,221.98,221.92,4.508]
[1737974729453,0.03467404,221.92,221.88,0.02943544]
[1737974729749,38.50300708,222.12,221.87,38.50300708]
[1737974729951,38.50300708,222.12,221.92,38.50300708]
[1737974730253,38.50300708,222.12,221.93,2.8256]
[1737974730849,0.03043831,222.05,222.0,0.03037378]
[1737974731052,0.03043831,222.05,222.0,4.53667378]
[1737974731247,0.03043831,222.05,222.0,0.03037378]
[1737974731646,0.03043831,222.05,221.93,1.4735]
[1737974731647,38.50300708,222.04,221.93,1.4735]
[1737974731947,38.50300708,222.04,221.85,2.7981]
[1737974732359,38.50300708,222.04,221.92,4.5081]
[1737974732654,38.50300708,222.04,221.85,2.7981]
[1737974733045,0.03145706,222.0,221.96,0.03157873]
[1737974733254,38.50300708,222.08,221.87,38.50300708]
[1737974733548,4.494e-05,222.0,221.96,0.02963816]
[1737974733748,44.46000565,222.28,221.99,90.49601416]
[1737974733950,5.95699857,222.28,222.11,38.50300708]
[1737974734155,5.95699857,222.28,222.26,4.5012]
[1737974734353,5.95699857,222.28,222.16,38.50300708]
[1737974734655,5.95699857,222.28,222.15,4.5033]
[1737974734955,0.03223588,222.24,222.2,0.03290137]
[1737974735156,4.5022,222.22,222.2,0.03290137]
[1737974735346,0.03163123,222.24,222.2,0.03290137]
[1737974735548,0.82706596,222.32,222.2,0.03290137]
[1737974735747,0.03150372,222.24,222.2,0.03290137]
[1737974735951,4.5021,222.22,222.2,0.03290137]
[1737974736751,0.03150372,222.24,222.2,0.03290137]
[1737974736752,4.53320372,222.24,222.2,0.03290137]
[1737974737156,0.03150372,222.24,222.2,0.03290137]
[1737974737455,4.5021,222.22,222.2,1.37e-06]
[1737974738353,0.03150372,222.24,222.2,1.37e-06]
[1737974739056,44.57798193,222.41,222.2,1.37e-06]
[1737974739258,4.4994,222.35,222.2,2.90250137]
[1737974739562,38.62098336,222.41,222.22,4.5019]
[1737974739756,38.62098336,222.37,222.2,2.9025]
[1737974740059,38.62098336,222.33,222.2,1.4306]